[Event "*** Titled Tuesday Blitz"]
[Site "Chess.com"]
[Date "2020.01.07"]
[Round "1"]
[White "isla88"]
[Black "AminMolaei"]
[Result "0-1"]
[WhiteElo "2216"]
[BlackElo "2574"]
[TimeControl "180+2"]
[EndTime "13:10:39 PST"]
[Termination "AminMolaei won by checkmate"]

1. b3 {[%clk 0:02:59.9]} 1... e5 {[%clk 0:03:00.9]} 2. Bb2 {[%clk 0:03:00.9]}
2... Nc6 {[%clk 0:03:02.5]} 3. c4 {[%clk 0:03:01]} 3... d6 {[%clk 0:03:03.1]} 4.
e3 {[%clk 0:03:01.4]} 4... f5 {[%clk 0:03:02.9]} 5. d4 {[%clk 0:03:01.3]} 5...
exd4 {[%clk 0:03:01.2]} 6. exd4 {[%clk 0:03:02.1]} 6... Nf6 {[%clk 0:03:02.6]}
7. Bd3 {[%clk 0:02:59.4]} 7... Be7 {[%clk 0:03:02.7]} 8. Ne2 {[%clk 0:02:58.4]}
8... O-O {[%clk 0:03:02.6]} 9. O-O {[%clk 0:02:58.9]} 9... g6 {[%clk 0:02:50.8]}
10. a3 {[%clk 0:02:54.7]} 10... d5 {[%clk 0:02:31]} 11. Nbc3 {[%clk 0:02:48.3]}
11... dxc4 {[%clk 0:02:24.1]} 12. Bxc4+ {[%clk 0:02:48.1]} 12... Kg7 {[%clk
0:02:22.6]} 13. d5 {[%clk 0:02:42.1]} 13... Ne5 {[%clk 0:02:23]} 14. Nf4 {[%clk
0:02:40.5]} 14... Bd6 {[%clk 0:02:20.5]} 15. Qd4 {[%clk 0:02:23.9]} 15... Re8
{[%clk 0:02:19.3]} 16. Nb5 {[%clk 0:02:18.6]} 16... a6 {[%clk 0:02:05.9]} 17.
Nxd6 {[%clk 0:02:17.8]} 17... cxd6 {[%clk 0:02:07.8]} 18. Rfe1 {[%clk
0:02:09.5]} 18... b5 {[%clk 0:02:08.6]} 19. Bf1 {[%clk 0:02:03.5]} 19... Rb8
{[%clk 0:02:01.2]} 20. Nd3 {[%clk 0:01:57.1]} 20... Ned7 {[%clk 0:01:47]} 21.
Rxe8 {[%clk 0:01:52.5]} 21... Qxe8 {[%clk 0:01:48.9]} 22. Nf4 {[%clk 0:01:53.6]}
22... Ne5 {[%clk 0:01:45.7]} 23. a4 {[%clk 0:01:46.4]} 23... bxa4 {[%clk
0:01:40.9]} 24. bxa4 {[%clk 0:01:33.4]} 24... Bd7 {[%clk 0:01:17.5]} 25. Rc1
{[%clk 0:01:31.1]} 25... Rc8 {[%clk 0:01:11.2]} 26. Bxa6 {[%clk 0:01:26.9]}
26... Rxc1+ {[%clk 0:01:11]} 27. Bxc1 {[%clk 0:01:26.9]} 27... Qb8 {[%clk
0:01:08.9]} 28. Bb2 {[%clk 0:01:16.2]} 28... Qb3 {[%clk 0:01:08.8]} 29. h3
{[%clk 0:01:02.4]} 29... Qxa4 {[%clk 0:00:56.8]} 30. Ne6+ {[%clk 0:01:02.5]}
30... Kf7 {[%clk 0:00:55.1]} 31. Ng5+ {[%clk 0:00:57.1]} 31... Ke7 {[%clk
0:00:50.7]} 32. Qxa4 {[%clk 0:00:26.5]} 32... Bxa4 {[%clk 0:00:50.3]} 33. f4
{[%clk 0:00:25.2]} 33... Ned7 {[%clk 0:00:49.5]} 34. Bd3 {[%clk 0:00:21.3]}
34... h6 {[%clk 0:00:48.6]} 35. Nf3 {[%clk 0:00:20.4]} 35... Nxd5 {[%clk
0:00:49.8]} 36. g3 {[%clk 0:00:21.2]} 36... Bc6 {[%clk 0:00:49.7]} 37. Nh4
{[%clk 0:00:21.2]} 37... Nf8 {[%clk 0:00:48]} 38. Bg7 {[%clk 0:00:20.9]} 38...
Be8 {[%clk 0:00:41.9]} 39. Bxf5 {[%clk 0:00:11.9]} 39... gxf5 {[%clk 0:00:34.6]}
40. Nxf5+ {[%clk 0:00:12.5]} 40... Ke6 {[%clk 0:00:28.3]} 41. Nxd6 {[%clk
0:00:07.6]} 41... Kxd6 {[%clk 0:00:23.3]} 42. Bxf8+ {[%clk 0:00:08.3]} 42... Ke6
{[%clk 0:00:24.1]} 43. Bxh6 {[%clk 0:00:08.8]} 43... Kf5 {[%clk 0:00:25.6]} 44.
Kf2 {[%clk 0:00:08.4]} 44... Ke4 {[%clk 0:00:26.6]} 45. Bg5 {[%clk 0:00:06.6]}
45... Nc3 {[%clk 0:00:23.9]} 46. g4 {[%clk 0:00:05.5]} 46... Kd5 {[%clk
0:00:19.7]} 47. Kf3 {[%clk 0:00:06.6]} 47... Bc6 {[%clk 0:00:20.3]} 48. f5
{[%clk 0:00:07.7]} 48... Ke5+ {[%clk 0:00:21.7]} 49. Kg3 {[%clk 0:00:08.9]}
49... Ne4+ {[%clk 0:00:22.5]} 50. Kh4 {[%clk 0:00:09.8]} 50... Be8 {[%clk
0:00:23.8]} 51. Bd8 {[%clk 0:00:09.7]} 51... Kf4 {[%clk 0:00:24.4]} 52. f6
{[%clk 0:00:09.5]} 52... Bf7 {[%clk 0:00:22.1]} 53. Be7 {[%clk 0:00:09]} 53...
Nd2 {[%clk 0:00:18.7]} 54. Bd6+ {[%clk 0:00:09.3]} 54... Kf3 {[%clk 0:00:18.3]}
55. g5 {[%clk 0:00:10.3]} 55... Ne4 {[%clk 0:00:16.5]} 56. Bc7 {[%clk
0:00:10.7]} 56... Bg6 {[%clk 0:00:16.6]} 57. Bb8 {[%clk 0:00:11]} 57... Nc5
{[%clk 0:00:16.9]} 58. Be5 {[%clk 0:00:11.3]} 58... Ne6 {[%clk 0:00:17.7]} 59.
Bg3 {[%clk 0:00:10.1]} 59... Nd4 {[%clk 0:00:18.7]} 60. f7 {[%clk 0:00:06.6]}
60... Nf5# {[%clk 0:00:20.6]} 0-1

[Event "*** Titled Tuesday Blitz"]
[Site "Chess.com"]
[Date "2020.01.07"]
[Round "1"]
[White "2nd_life"]
[Black "GadimbayliA"]
[Result "1/2-1/2"]
[WhiteElo "2513"]
[BlackElo "2960"]
[TimeControl "180+2"]
[EndTime "13:10:47 PST"]
[Termination "Game drawn by agreement"]

1. e4 {[%clk 0:02:58.3]} 1... e5 {[%clk 0:03:00.4]} 2. f4 {[%clk 0:02:58.6]}
2... d5 {[%clk 0:02:59.4]} 3. exd5 {[%clk 0:02:59.2]} 3... e4 {[%clk 0:02:59.8]}
4. d3 {[%clk 0:02:55.7]} 4... Nf6 {[%clk 0:02:56.7]} 5. dxe4 {[%clk 0:02:55.7]}
5... Nxe4 {[%clk 0:02:57.7]} 6. Nf3 {[%clk 0:02:55.3]} 6... Bc5 {[%clk
0:02:58.2]} 7. Qe2 {[%clk 0:02:50]} 7... Qe7 {[%clk 0:02:53.8]} 8. Nbd2 {[%clk
0:02:28.8]} 8... Nf2 {[%clk 0:02:48.7]} 9. Qxe7+ {[%clk 0:02:17.9]} 9... Kxe7
{[%clk 0:02:50.6]} 10. Rg1 {[%clk 0:02:11.2]} 10... Ng4 {[%clk 0:02:47.9]} 11.
Rh1 {[%clk 0:01:48.4]} 11... Ne3 {[%clk 0:02:47.9]} 12. Nb3 {[%clk 0:01:18.7]}
12... Nxc2+ {[%clk 0:02:38.3]} 13. Kd1 {[%clk 0:01:17.2]} 13... Nxa1 {[%clk
0:02:35.1]} 14. Nxc5 {[%clk 0:01:17]} 14... Rd8 {[%clk 0:02:36.6]} 15. Bc4
{[%clk 0:00:25.7]} 15... Bf5 {[%clk 0:02:33.8]} 16. Nd4 {[%clk 0:00:23.4]} 16...
Bg4+ {[%clk 0:02:31.3]} 17. Kd2 {[%clk 0:00:19]} 17... b6 {[%clk 0:02:24.5]} 18.
Re1+ {[%clk 0:00:19.2]} 18... Kf8 {[%clk 0:02:22.7]} 19. Nd3 {[%clk 0:00:19.4]}
19... c6 {[%clk 0:02:14]} 20. Ne5 {[%clk 0:00:17]} 20... b5 {[%clk 0:01:57.8]}
21. Nxg4 {[%clk 0:00:08]} 21... bxc4 {[%clk 0:01:58.2]} 22. Kc3 {[%clk
0:00:09.3]} 22... cxd5 {[%clk 0:01:50.9]} 23. Bd2 {[%clk 0:00:08.8]} 23... Re8
{[%clk 0:01:52.2]} 24. Rxa1 {[%clk 0:00:08.4]} 24... Na6 {[%clk 0:01:53.9]} 25.
Re1 {[%clk 0:00:07.3]} 25... Nc5 {[%clk 0:01:50.4]} 26. Rxe8+ {[%clk 0:00:04.7]}
26... Rxe8 {[%clk 0:01:52.3]} 27. Nf2 {[%clk 0:00:06.2]} 27... f6 {[%clk
0:01:49.2]} 28. b3 {[%clk 0:00:07.1]} 28... cxb3 {[%clk 0:01:47.5]} 29. axb3
{[%clk 0:00:08]} 29... Kf7 {[%clk 0:01:47.5]} 30. g4 {[%clk 0:00:07.6]} 30... h5
{[%clk 0:01:44.5]} 31. h3 {[%clk 0:00:07.4]} 31... hxg4 {[%clk 0:01:41.9]} 32.
hxg4 {[%clk 0:00:09.3]} 32... a6 {[%clk 0:01:21.4]} 33. b4 {[%clk 0:00:10.1]}
33... Na4+ {[%clk 0:01:19.8]} 34. Kb3 {[%clk 0:00:10.2]} 34... Nb6 {[%clk
0:01:20.3]} 35. f5 {[%clk 0:00:11.2]} 35... Nc4 {[%clk 0:01:19.7]} 36. Bf4
{[%clk 0:00:10.2]} 36... Re1 {[%clk 0:01:20.8]} 37. Nd3 {[%clk 0:00:10]} 37...
Rg1 {[%clk 0:01:18.3]} 38. Ne2 {[%clk 0:00:05.5]} 38... Rxg4 {[%clk 0:01:16.3]}
39. Nc3 {[%clk 0:00:06.7]} 39... Nb6 {[%clk 0:01:14.2]} 40. Bc7 {[%clk
0:00:05.9]} 40... d4 {[%clk 0:01:15]} 41. Bxb6 {[%clk 0:00:06.2]} 41... dxc3
{[%clk 0:01:16.6]} 42. Kxc3 {[%clk 0:00:07.2]} 42... Rg5 {[%clk 0:01:17.7]} 43.
Nc5 {[%clk 0:00:08.5]} 43... Rxf5 {[%clk 0:01:18.6]} 44. Nxa6 {[%clk 0:00:09.8]}
44... g5 {[%clk 0:01:18.3]} 45. Bc5 {[%clk 0:00:10.6]} 45... g4 {[%clk
0:01:16.7]} 46. b5 {[%clk 0:00:12]} 46... g3 {[%clk 0:01:11.3]} 47. b6 {[%clk
0:00:12.7]} 47... Rxc5+ {[%clk 0:01:09.6]} 48. Nxc5 {[%clk 0:00:13.1]} 48... g2
{[%clk 0:01:11.5]} 49. b7 {[%clk 0:00:11.5]} 49... g1=Q {[%clk 0:01:12.8]} 50.
b8=Q {[%clk 0:00:12.9]} 50... Qxc5+ {[%clk 0:01:13.9]} 51. Kd3 {[%clk
0:00:13.7]} 51... Qd5+ {[%clk 0:01:10.4]} 52. Ke3 {[%clk 0:00:13.5]} 52... Qg5+
{[%clk 0:01:06.4]} 53. Kf3 {[%clk 0:00:13.8]} 53... Qf5+ {[%clk 0:01:06.3]} 54.
Ke3 {[%clk 0:00:14.7]} 54... Qe6+ {[%clk 0:01:06.2]} 55. Kf4 {[%clk 0:00:15]}
55... Qh3 {[%clk 0:01:04.1]} 56. Qb7+ {[%clk 0:00:14.4]} 56... Kg6 {[%clk
0:01:04.4]} 57. Qe4+ {[%clk 0:00:15.5]} 57... Kh6 {[%clk 0:01:05.5]} 58. Qe8
{[%clk 0:00:12.7]} 58... Qf1+ {[%clk 0:01:03.6]} 59. Kg3 {[%clk 0:00:13]} 59...
Qg1+ {[%clk 0:01:01.4]} 60. Kf3 {[%clk 0:00:12.4]} 60... Qd1+ {[%clk 0:00:57.3]}
61. Kg3 {[%clk 0:00:11.1]} 61... Qd6+ {[%clk 0:00:55.8]} 62. Kg4 {[%clk
0:00:09]} 62... Kg7 {[%clk 0:00:56.1]} 63. Qe4 {[%clk 0:00:05.5]} 63... Qd7+
{[%clk 0:00:54.6]} 64. Qf5 {[%clk 0:00:04.2]} 64... Qd4+ {[%clk 0:00:55.8]} 65.
Kf3 {[%clk 0:00:05.2]} 65... Kf7 {[%clk 0:00:55.7]} 66. Qh7+ {[%clk 0:00:05.9]}
66... Kf8 {[%clk 0:00:57.2]} 67. Qh8+ {[%clk 0:00:07]} 67... Ke7 {[%clk
0:00:58.7]} 68. Qg7+ {[%clk 0:00:08.3]} 68... Ke6 {[%clk 0:00:49.4]} 69. Qg8+
{[%clk 0:00:09.4]} 69... Kf5 {[%clk 0:00:50.1]} 70. Qc8+ {[%clk 0:00:09.7]}
70... Kg5 {[%clk 0:00:49.8]} 71. Qg8+ {[%clk 0:00:10.4]} 71... Kf5 {[%clk
0:00:50.1]} 72. Qc8+ {[%clk 0:00:11.4]} 72... Ke5 {[%clk 0:00:51.6]} 73. Qe8+
{[%clk 0:00:12.2]} 1/2-1/2

[Event "*** Titled Tuesday Blitz"]
[Site "Chess.com"]
[Date "2020.01.07"]
[Round "1"]
[White "SavelievAlexei"]
[Black "nurgyulsalimova"]
[Result "1/2-1/2"]
[WhiteElo "2286"]
[BlackElo "2606"]
[TimeControl "180+2"]
[EndTime "13:10:49 PST"]
[Termination "Game drawn by stalemate"]

1. e4 {[%clk 0:03:01.1]} 1... e5 {[%clk 0:03:00.6]} 2. Nf3 {[%clk 0:03:01.9]}
2... Nc6 {[%clk 0:03:01.7]} 3. Bb5 {[%clk 0:03:02.9]} 3... a6 {[%clk 0:03:00.6]}
4. Ba4 {[%clk 0:03:03.9]} 4... g6 {[%clk 0:03:01.1]} 5. h4 {[%clk 0:03:02.1]}
5... h5 {[%clk 0:02:58]} 6. Nc3 {[%clk 0:02:53.4]} 6... Bg7 {[%clk 0:02:58.8]}
7. d3 {[%clk 0:02:54.6]} 7... Nge7 {[%clk 0:02:49.9]} 8. Bg5 {[%clk 0:02:54.8]}
8... f6 {[%clk 0:02:49.4]} 9. Be3 {[%clk 0:02:55.4]} 9... d5 {[%clk 0:02:47.6]}
10. d4 {[%clk 0:02:41]} 10... dxe4 {[%clk 0:02:23]} 11. Nxe4 {[%clk 0:02:39.1]}
11... b5 {[%clk 0:02:23.9]} 12. Bb3 {[%clk 0:02:33.3]} 12... Bf5 {[%clk
0:01:56.1]} 13. Nc5 {[%clk 0:02:21.9]} 13... e4 {[%clk 0:01:49.9]} 14. Nd2
{[%clk 0:01:55.4]} 14... Nxd4 {[%clk 0:01:48.5]} 15. Ndxe4 {[%clk 0:01:54.9]}
15... Nxb3 {[%clk 0:01:46.7]} 16. Qxd8+ {[%clk 0:01:54.9]} 16... Rxd8 {[%clk
0:01:29.9]} 17. axb3 {[%clk 0:01:55.7]} 17... Bc8 {[%clk 0:01:21.9]} 18. Nxa6
{[%clk 0:01:44.6]} 18... f5 {[%clk 0:01:20.5]} 19. Nc3 {[%clk 0:00:58.2]} 19...
Bxa6 {[%clk 0:01:09.8]} 20. Rxa6 {[%clk 0:00:58.2]} 20... b4 {[%clk 0:01:11.1]}
21. Na4 {[%clk 0:00:58.8]} 21... Kf7 {[%clk 0:01:10.6]} 22. O-O {[%clk
0:00:55.4]} 22... Nd5 {[%clk 0:01:05.8]} 23. Bc5 {[%clk 0:00:55.9]} 23... Rhe8
{[%clk 0:01:03.8]} 24. Rd1 {[%clk 0:00:41.8]} 24... Bf6 {[%clk 0:00:50.8]} 25.
Ra5 {[%clk 0:00:16]} 25... Bxh4 {[%clk 0:00:42.3]} 26. Ba7 {[%clk 0:00:15.6]}
26... c6 {[%clk 0:00:38.3]} 27. Bd4 {[%clk 0:00:14.7]} 27... Nf4 {[%clk
0:00:35.6]} 28. Kf1 {[%clk 0:00:14.2]} 28... Bf6 {[%clk 0:00:34]} 29. Ra7+
{[%clk 0:00:14.2]} 29... Kg8 {[%clk 0:00:29.2]} 30. c3 {[%clk 0:00:15.3]} 30...
bxc3 {[%clk 0:00:27.6]} 31. bxc3 {[%clk 0:00:17.1]} 31... Bxd4 {[%clk
0:00:27.4]} 32. cxd4 {[%clk 0:00:17.9]} 32... Ne6 {[%clk 0:00:26.4]} 33. b4
{[%clk 0:00:15.2]} 33... Nxd4 {[%clk 0:00:24.3]} 34. Nc5 {[%clk 0:00:15.9]}
34... Nc2 {[%clk 0:00:21.4]} 35. Rad7 {[%clk 0:00:09.6]} 35... Rxd7 {[%clk
0:00:21.3]} 36. Nxd7 {[%clk 0:00:11.5]} 36... Kf7 {[%clk 0:00:21.4]} 37. g3
{[%clk 0:00:11.8]} 37... Nxb4 {[%clk 0:00:22.4]} 38. Nc5 {[%clk 0:00:12.4]}
38... Nd5 {[%clk 0:00:23]} 39. Rc1 {[%clk 0:00:13.3]} 39... Re7 {[%clk
0:00:21.9]} 40. Nd3 {[%clk 0:00:13.9]} 40... Re6 {[%clk 0:00:20.7]} 41. Rxc6
{[%clk 0:00:13.1]} 41... Rxc6 {[%clk 0:00:22.1]} 42. Ne5+ {[%clk 0:00:14.6]}
42... Kf6 {[%clk 0:00:23]} 43. Nxc6 {[%clk 0:00:16.5]} 43... g5 {[%clk
0:00:21.9]} 44. Kg2 {[%clk 0:00:16.9]} 44... f4 {[%clk 0:00:23]} 45. Nd4 {[%clk
0:00:16.1]} 45... fxg3 {[%clk 0:00:20.8]} 46. fxg3 {[%clk 0:00:14.8]} 46... Ne3+
{[%clk 0:00:20.9]} 47. Kf3 {[%clk 0:00:15.8]} 47... Ng4 {[%clk 0:00:21.8]} 48.
Nc6 {[%clk 0:00:13.6]} 48... Ne5+ {[%clk 0:00:21.6]} 49. Nxe5 {[%clk 0:00:12.7]}
49... Kxe5 {[%clk 0:00:23.5]} 50. Ke3 {[%clk 0:00:14.1]} 50... g4 {[%clk
0:00:18.2]} 51. Kd3 {[%clk 0:00:12.6]} 51... Kf5 {[%clk 0:00:17.7]} 52. Ke3
{[%clk 0:00:07.8]} 52... Kg5 {[%clk 0:00:18.8]} 53. Kf2 {[%clk 0:00:07.8]} 53...
h4 {[%clk 0:00:19.9]} 54. gxh4+ {[%clk 0:00:08.4]} 54... Kxh4 {[%clk 0:00:21.8]}
55. Kg2 {[%clk 0:00:09.8]} 55... g3 {[%clk 0:00:22.6]} 56. Kg1 {[%clk
0:00:10.1]} 56... Kg4 {[%clk 0:00:22.7]} 57. Kg2 {[%clk 0:00:11.3]} 57... Kf4
{[%clk 0:00:23.9]} 58. Kg1 {[%clk 0:00:12.6]} 58... Kf3 {[%clk 0:00:24.7]} 59.
Kf1 {[%clk 0:00:13.8]} 59... g2+ {[%clk 0:00:26.1]} 60. Kg1 {[%clk 0:00:14.9]}
60... Kg3 {[%clk 0:00:27.5]} 1/2-1/2

[Event "*** Titled Tuesday Blitz"]
[Site "Chess.com"]
[Date "2020.01.07"]
[Round "1"]
[White "Kosche007"]
[Black "SavelijTartakover"]
[Result "1/2-1/2"]
[WhiteElo "2367"]
[BlackElo "2708"]
[TimeControl "180+2"]
[EndTime "13:10:50 PST"]
[Termination "Game drawn by repetition"]

1. e4 {[%clk 0:03:00]} 1... c5 {[%clk 0:02:58.3]} 2. Nf3 {[%clk 0:03:00.9]} 2...
d6 {[%clk 0:02:59.2]} 3. d4 {[%clk 0:03:02.1]} 3... cxd4 {[%clk 0:03:00.2]} 4.
Nxd4 {[%clk 0:03:03.7]} 4... Nf6 {[%clk 0:03:01.2]} 5. Nc3 {[%clk 0:03:04.8]}
5... Nc6 {[%clk 0:03:02.6]} 6. Bg5 {[%clk 0:03:05.3]} 6... e6 {[%clk 0:03:03.4]}
7. Qd2 {[%clk 0:03:06.2]} 7... a6 {[%clk 0:03:03.2]} 8. O-O-O {[%clk 0:03:06.2]}
8... Bd7 {[%clk 0:03:04]} 9. f3 {[%clk 0:03:04.9]} 9... Be7 {[%clk 0:03:03.1]}
10. h4 {[%clk 0:03:04.9]} 10... h6 {[%clk 0:03:03.5]} 11. Be3 {[%clk 0:03:05.1]}
11... h5 {[%clk 0:03:04.6]} 12. Kb1 {[%clk 0:03:04.7]} 12... Ne5 {[%clk
0:03:04.8]} 13. Bg5 {[%clk 0:02:59.9]} 13... b5 {[%clk 0:03:05.5]} 14. Bd3
{[%clk 0:02:55.6]} 14... Qc7 {[%clk 0:03:04.6]} 15. Nce2 {[%clk 0:02:40.6]}
15... Rb8 {[%clk 0:02:58.2]} 16. Rc1 {[%clk 0:02:28.5]} 16... b4 {[%clk
0:02:45.1]} 17. c4 {[%clk 0:02:15.3]} 17... bxc3 {[%clk 0:02:10.9]} 18. Rxc3
{[%clk 0:02:06.2]} 18... Qa7 {[%clk 0:02:05.4]} 19. Rhc1 {[%clk 0:01:59.8]}
19... Bd8 {[%clk 0:01:56.4]} 20. f4 {[%clk 0:01:37.5]} 20... Nxd3 {[%clk
0:01:49.1]} 21. Qxd3 {[%clk 0:01:38.7]} 21... Qa8 {[%clk 0:01:37.4]} 22. Nc6
{[%clk 0:01:31.5]} 22... Rb6 {[%clk 0:01:11.3]} 23. Nxd8 {[%clk 0:01:27]} 23...
Nxe4 {[%clk 0:01:07]} 24. Nxe6 {[%clk 0:00:59.5]} 24... Bxe6 {[%clk 0:00:50.8]}
25. Qd4 {[%clk 0:00:51.2]} 25... Nxc3+ {[%clk 0:00:33.8]} 26. Nxc3 {[%clk
0:00:41.2]} 26... Qb7 {[%clk 0:00:32.6]} 27. Qxg7 {[%clk 0:00:40.6]} 27... Rf8
{[%clk 0:00:30.1]} 28. Bh6 {[%clk 0:00:38]} 28... Qe7 {[%clk 0:00:27.3]} 29.
Qxf8+ {[%clk 0:00:37.5]} 29... Qxf8 {[%clk 0:00:27.8]} 30. Bxf8 {[%clk
0:00:38.6]} 30... Kxf8 {[%clk 0:00:29.7]} 31. Rd1 {[%clk 0:00:30.6]} 31... Rb4
{[%clk 0:00:28.4]} 32. g3 {[%clk 0:00:31.3]} 32... Ke7 {[%clk 0:00:26.5]} 33.
Nd5+ {[%clk 0:00:30.8]} 33... Bxd5 {[%clk 0:00:24.8]} 34. Rxd5 {[%clk
0:00:32.7]} 34... Re4 {[%clk 0:00:21]} 35. Rxh5 {[%clk 0:00:31.8]} 35... Ke6
{[%clk 0:00:20.2]} 36. Rg5 {[%clk 0:00:32.1]} 36... f6 {[%clk 0:00:20.5]} 37.
Rg7 {[%clk 0:00:32.5]} 37... d5 {[%clk 0:00:20]} 38. Kc2 {[%clk 0:00:31.9]}
38... Re2+ {[%clk 0:00:19.2]} 39. Kc3 {[%clk 0:00:32.2]} 39... d4+ {[%clk
0:00:20.1]} 40. Kxd4 {[%clk 0:00:31.9]} 40... Rxb2 {[%clk 0:00:20.9]} 41. g4
{[%clk 0:00:32.4]} 41... Rxa2 {[%clk 0:00:21.2]} 42. h5 {[%clk 0:00:33.3]} 42...
Ra4+ {[%clk 0:00:19.7]} 43. Ke3 {[%clk 0:00:31.9]} 43... Ra3+ {[%clk 0:00:20.8]}
44. Ke4 {[%clk 0:00:33.2]} 44... f5+ {[%clk 0:00:19]} 45. gxf5+ {[%clk
0:00:32.3]} 45... Kf6 {[%clk 0:00:20.1]} 46. Rg6+ {[%clk 0:00:33.5]} 46... Kf7
{[%clk 0:00:21.1]} 47. Rb6 {[%clk 0:00:34.3]} 47... Rh3 {[%clk 0:00:18.8]} 48.
h6 {[%clk 0:00:34.8]} 48... a5 {[%clk 0:00:19.3]} 49. Ra6 {[%clk 0:00:35.1]}
49... a4 {[%clk 0:00:19.6]} 50. Ra7+ {[%clk 0:00:18.2]} 50... Kf6 {[%clk
0:00:18.5]} 51. Rxa4 {[%clk 0:00:18.2]} 51... Rh1 {[%clk 0:00:16.4]} 52. Ra6+
{[%clk 0:00:19]} 52... Kf7 {[%clk 0:00:17.2]} 53. f6 {[%clk 0:00:18.2]} 53...
Rxh6 {[%clk 0:00:16.6]} 54. Ke5 {[%clk 0:00:19.1]} 54... Rh1 {[%clk 0:00:16.3]}
55. Ra7+ {[%clk 0:00:19.9]} 55... Kf8 {[%clk 0:00:15.8]} 56. Ke6 {[%clk
0:00:21.1]} 56... Re1+ {[%clk 0:00:16.6]} 57. Kf5 {[%clk 0:00:22.4]} 57... Rg1
{[%clk 0:00:16.7]} 58. Rb7 {[%clk 0:00:21.6]} 58... Rg2 {[%clk 0:00:16.8]} 59.
Ke6 {[%clk 0:00:21.3]} 59... Re2+ {[%clk 0:00:17.4]} 60. Kf5 {[%clk 0:00:22.5]}
60... Rg2 {[%clk 0:00:18.2]} 61. f7 {[%clk 0:00:22.8]} 61... Rc2 {[%clk
0:00:17.7]} 62. Kg5 {[%clk 0:00:19.8]} 62... Rc6 {[%clk 0:00:18]} 63. f5 {[%clk
0:00:18.7]} 63... Ra6 {[%clk 0:00:18.8]} 64. Rc7 {[%clk 0:00:16.8]} 64... Rb6
{[%clk 0:00:19.5]} 65. Rd7 {[%clk 0:00:14.6]} 65... Ra6 {[%clk 0:00:20.3]} 66.
Rb7 {[%clk 0:00:15.2]} 66... Rc6 {[%clk 0:00:20.7]} 67. Ra7 {[%clk 0:00:12.6]}
67... Rb6 {[%clk 0:00:21.2]} 68. f6 {[%clk 0:00:07.7]} 68... Rb1 {[%clk
0:00:20.7]} 69. Ra8+ {[%clk 0:00:08.7]} 69... Kxf7 {[%clk 0:00:21.1]} 70. Ra7+
{[%clk 0:00:10.2]} 70... Kf8 {[%clk 0:00:22.1]} 71. Ra8+ {[%clk 0:00:11.4]}
71... Kf7 {[%clk 0:00:22.6]} 72. Ra7+ {[%clk 0:00:12.7]} 72... Kf8 {[%clk
0:00:23.6]} 73. Ra8+ {[%clk 0:00:14]} 73... Kf7 {[%clk 0:00:24.2]} 1/2-1/2

[Event "*** Titled Tuesday Blitz"]
[Site "Chess.com"]
[Date "2020.01.07"]
[Round "1"]
[White "ChEsper99"]
[Black "SlavenPastar"]
[Result "1/2-1/2"]
[WhiteElo "2002"]
[BlackElo "2515"]
[TimeControl "180+2"]
[EndTime "13:10:54 PST"]
[Termination "Game drawn by stalemate"]

1. e4 {[%clk 0:03:01.9]} 1... e5 {[%clk 0:02:28.7]} 2. Nf3 {[%clk 0:03:02.6]}
2... Nc6 {[%clk 0:02:29.6]} 3. d4 {[%clk 0:03:02]} 3... exd4 {[%clk 0:02:30]} 4.
Nxd4 {[%clk 0:03:03.9]} 4... Nf6 {[%clk 0:02:27.9]} 5. Nxc6 {[%clk 0:03:01.5]}
5... bxc6 {[%clk 0:02:28.1]} 6. Qe2 {[%clk 0:03:02.4]} 6... Qe7 {[%clk
0:02:23.8]} 7. Nc3 {[%clk 0:03:02.9]} 7... Qe6 {[%clk 0:02:03]} 8. Bd2 {[%clk
0:02:30.7]} 8... Bb4 {[%clk 0:02:00.5]} 9. f3 {[%clk 0:02:30.1]} 9... d5 {[%clk
0:01:54.8]} 10. exd5 {[%clk 0:02:28.7]} 10... cxd5 {[%clk 0:01:54.3]} 11. O-O-O
{[%clk 0:02:01.3]} 11... O-O {[%clk 0:01:47.9]} 12. Qxe6 {[%clk 0:01:50.9]}
12... Bxe6 {[%clk 0:01:45.4]} 13. a3 {[%clk 0:01:44.2]} 13... Ba5 {[%clk
0:01:45.4]} 14. Nb5 {[%clk 0:01:39.4]} 14... Bb6 {[%clk 0:01:37]} 15. Nd4 {[%clk
0:01:37]} 15... Bd7 {[%clk 0:01:38]} 16. Nb3 {[%clk 0:01:13.1]} 16... c5 {[%clk
0:01:34]} 17. Ba6 {[%clk 0:01:14.1]} 17... c4 {[%clk 0:01:30.6]} 18. Na1 {[%clk
0:01:03.1]} 18... Rab8 {[%clk 0:01:26.5]} 19. Rhe1 {[%clk 0:00:52.9]} 19... Bc7
{[%clk 0:01:00.4]} 20. Bb4 {[%clk 0:00:48.6]} 20... Rfe8 {[%clk 0:00:34.8]} 21.
Bc5 {[%clk 0:00:36.6]} 21... Bxh2 {[%clk 0:00:33.2]} 22. b3 {[%clk 0:00:29.7]}
22... cxb3 {[%clk 0:00:26]} 23. Nxb3 {[%clk 0:00:31.2]} 23... Ba4 {[%clk
0:00:21.8]} 24. Kb2 {[%clk 0:00:29.6]} 24... Be5+ {[%clk 0:00:20.6]} 25. Ka2
{[%clk 0:00:30.6]} 25... Bc3 {[%clk 0:00:19.9]} 26. Rxe8+ {[%clk 0:00:30.5]}
26... Rxe8 {[%clk 0:00:21.8]} 27. Bd4 {[%clk 0:00:23.4]} 27... Bxb3+ {[%clk
0:00:15.9]} 28. Kxb3 {[%clk 0:00:18.8]} 28... Bxd4 {[%clk 0:00:15.5]} 29. Rxd4
{[%clk 0:00:20.7]} 29... h5 {[%clk 0:00:13]} 30. g4 {[%clk 0:00:08.8]} 30...
hxg4 {[%clk 0:00:10]} 31. fxg4 {[%clk 0:00:07.5]} 31... g5 {[%clk 0:00:11.5]}
32. a4 {[%clk 0:00:05.2]} 32... Kg7 {[%clk 0:00:08.5]} 33. a5 {[%clk 0:00:06]}
33... Re3+ {[%clk 0:00:07.8]} 34. c3 {[%clk 0:00:06.9]} 34... Rg3 {[%clk
0:00:05.9]} 35. Bb7 {[%clk 0:00:06.9]} 35... Rxg4 {[%clk 0:00:03.3]} 36. Rxg4
{[%clk 0:00:06.1]} 36... Nxg4 {[%clk 0:00:05.2]} 37. Bxd5 {[%clk 0:00:07]} 37...
Nf6 {[%clk 0:00:06.8]} 38. Bg2 {[%clk 0:00:04]} 38... Nh5 {[%clk 0:00:06.9]} 39.
c4 {[%clk 0:00:04.9]} 39... Nf4 {[%clk 0:00:08.5]} 40. Bb7 {[%clk 0:00:04.2]}
40... g4 {[%clk 0:00:08.1]} 41. c5 {[%clk 0:00:04.4]} 41... g3 {[%clk
0:00:08.7]} 42. Bf3 {[%clk 0:00:05]} 42... Ne6 {[%clk 0:00:08.1]} 43. Kb4 {[%clk
0:00:05.6]} 43... f5 {[%clk 0:00:05.7]} 44. c6 {[%clk 0:00:06.5]} 44... a6
{[%clk 0:00:05.9]} 45. Kc4 {[%clk 0:00:07.5]} 45... Kf6 {[%clk 0:00:07.1]} 46.
Kd5 {[%clk 0:00:09]} 46... f4 {[%clk 0:00:08.5]} 47. Kd6 {[%clk 0:00:10]} 47...
Nd4 {[%clk 0:00:09.5]} 48. c7 {[%clk 0:00:09.4]} 48... Nxf3 {[%clk 0:00:09]} 49.
c8=Q {[%clk 0:00:10.8]} 49... g2 {[%clk 0:00:10.2]} 50. Qf8+ {[%clk 0:00:09.8]}
50... Kg5 {[%clk 0:00:06]} 51. Qg7+ {[%clk 0:00:10.9]} 51... Kh4 {[%clk
0:00:05.3]} 52. Qxg2 {[%clk 0:00:12.3]} 52... Ng5 {[%clk 0:00:06.4]} 53. Qh2+
{[%clk 0:00:12]} 53... Nh3 {[%clk 0:00:07.5]} 54. Ke5 {[%clk 0:00:12.6]} 54...
f3 {[%clk 0:00:08.7]} 55. Ke4 {[%clk 0:00:11.4]} 55... f2 {[%clk 0:00:09.3]} 56.
Qg2 {[%clk 0:00:09.8]} 56... Ng5+ {[%clk 0:00:07.1]} 57. Ke3 {[%clk 0:00:08.1]}
57... Nh3 {[%clk 0:00:07.6]} 58. Qe4+ {[%clk 0:00:04.2]} 58... Kg3 {[%clk
0:00:08]} 59. Qf3+ {[%clk 0:00:04.1]} 59... Kh2 {[%clk 0:00:08.5]} 60. Kd2
{[%clk 0:00:02.2]} 60... Kg1 {[%clk 0:00:04.5]} 61. Qg3+ {[%clk 0:00:03.2]}
61... Kh1 {[%clk 0:00:05.2]} 62. Qxh3+ {[%clk 0:00:04.3]} 62... Kg1 {[%clk
0:00:06.7]} 63. Qg3+ {[%clk 0:00:03.8]} 63... Kh1 {[%clk 0:00:07.7]} 64. Ke2
{[%clk 0:00:03.6]} 64... f1=Q+ {[%clk 0:00:08.4]} 65. Kxf1 {[%clk 0:00:02.8]}
1/2-1/2